[Event "Guimaraes Open 2018"]
[Site "Guimaraes"]
[Date "2018.10.06"]
[Round "5"]
[White "Guimaraes, Alvaro Jose Esperan"]
[Black "Fonseca, Pedro Miguel Ramos "]
[Result "0-1"]
[ECO "A00"]
[WhiteElo "1801"]
[BlackElo "1437"]
[Annotator "NA RC"]
[PlyCount "68"]
[EventDate "2018.10.04"]
[EventType "swiss"]
[EventCountry "POR"]
[SourceTitle "playchess.com"]
[Source "ChessBase"]
[SourceQuality "1"]
[TimeControl "5400+30"]

1. g3 {[%emt 0:00:00]} d5 {[%emt 0:00:25]} 2. Bg2 {[%emt 0:00:08]} Nf6 {[%emt 0:00:15]} 3. d3 {[%emt 0:00:09]} c6 {[%emt 0:01:25]} 4. Nf3 {[%emt 0:00:14]} Bf5 {[%emt 0:00:28]} 5. O-O {[%emt 0:00:21]} e6 {[%emt 0:01:13]} 6. Nc3 {[%emt 0:00:29]} Nbd7 {[%emt 0:01:31]} 7. Nh4 {[%emt 0:00:49]} Bg6 {[%emt 0:00:18]} 8. Bg5 {[%emt 0:02:05]} Qc7 {[%emt 0:01:38]} 9. e4 {[%emt 0:00:40]} Bb4 {[%emt 0:01:28]} 10. Nxg6 {[%emt 0:04:57]} hxg6 {[%emt 0:00:59]} 11. Nb1 {[%emt 0:05:46]} Qe5 {[%emt 0:05:27]} 12. Bc1 {[%emt 0:02:42]} O-O-O {[%emt 0:04:05]} 13. c3 {[%emt 0:00:24]} Ba5 {[%emt 0:02:01]} 14. d4 {[%emt 0:01:28]} Qc7 {[%emt 0:02:28]} 15. f3 {[%emt 0:03:43]} Rh7 {[%emt 0:03:08]} 16. e5 {[%emt 0:00:49]} Ng8 {[%emt 0:00:50]} 17. a4 {[%emt 0:02:26]} Qb8 {[%emt 0:01:23]} 18. Qe2 {[%emt 0:03:12]} c5 {[%emt 0:03:48]} 19. Be3 {[%emt 0:00:29]} Ne7 {[%emt 0:05:01]} 20. Na3 {[%emt 0:02:43]} a6 {[%emt 0:02:43]} 21. Nc2 {[%emt 0:02:28]} c4 22. g4 {[%emt 0:05:29]} f6 {[%emt 0:07:11]} 23. f4 {[%emt 0:02:08]} g5 {[%emt 0:02:33]} 24. Rae1 $15 {[%emt 0:02:12]} ({White should play} 24. Bd2 $11) 24... gxf4 {[%emt 0:11:00]} 25. Bxf4 {[%emt 0:00:16]} Ng6 {[%emt 0:01:57]} 26. Bg3 {[%emt 0:00:42]} Bc7 {[%emt 0:03:05]} 27. Rf3 {[%emt 0:04:23]} fxe5 {[%emt 0:00:35]} 28. dxe5 {[%emt 0:00:13]} Ngxe5 {[%emt 0:01:35]} 29. Re3 {[%emt 0:01:33]} Nd3 {[%emt 0:00:19]} 30. Rf1 {[%emt 0:00:33]} Bxg3 {[%emt 0:02:50]} 31. Rxg3 {[%emt 0:01:27]} Rdh8 {[%emt 0:04:53]} 32. Nb4 {[%emt 0:05:29]} Rxh2 {[%emt 0:03:13]} 33. Rxd3 {[%emt 0:00:29]} cxd3 {[%emt 0:00:26]} 34. Nxd3 {[%emt 0:00:44]} Qg3 {[%emt 0:00:44]} 0-1

[Event "Guimaraes Open 2018"]
[Site "Guimaraes"]
[Date "2018.10.06"]
[Round "5"]
[White "Monteiro, Paulo Alexandre Gom"]
[Black "Bazan Solera, Manuel"]
[Result "1/2-1/2"]
[ECO "A48"]
[WhiteElo "1602"]
[BlackElo "1932"]
[Annotator "NA RC"]
[PlyCount "101"]
[EventDate "2018.10.04"]
[EventType "swiss"]
[EventCountry "POR"]
[SourceTitle "playchess.com"]
[Source "ChessBase"]
[SourceQuality "1"]
[TimeControl "5400+30"]

1. d4 {[%emt 0:03:22]} Nf6 {[%emt 0:00:00]} 2. Nf3 {[%emt 0:00:06]} g6 {[%emt 0:00:00]} 3. c4 {[%emt 0:00:06]} Bg7 {[%emt 0:00:00]} 4. Nc3 {[%emt 0:00:07]} O-O {[%emt 0:00:00]} 5. Bg5 {[%emt 0:00:13]} d6 {[%emt 0:00:30]} 6. e3 {[%emt 0:00:07]} Na6 {[%emt 0:00:43] E61: King's Indian: Early deviations for White, including Smyslov System} (6... c5 7. d5 h6 8. Bh4 g5 9. Bg3 Nh5 10. Bd3 f5 11. Nd2 Nxg3 12. hxg3 Nd7 13. f4 Nf6 14. Qe2 gxf4 15. gxf4 Ng4 16. e4 fxe4 17. Qxe4 {0-1 (34) Indjic,A (2581)-Amin,B (2680) Abu Dhabi 2017}) 7. Be2 {[%emt 0:02:08]} c6 {[%emt 0:00:05]} 8. O-O {[%emt 0:00:29]} Nc7 {[%emt 0:00:08]} 9. Qd2 {[%emt 0:03:14]} Rb8 $146 {[%emt 0:00:48]} ({Predecessor:} 9... Bf5 10. h3 Ne4 11. Nxe4 Bxe4 12. Rfd1 f6 13. Bf4 Qd7 14. Qb4 g5 15. Bh2 {0-1 (50) Corbalan Liarte,J-Bellagamba,P (1652) Madrid 2016}) 10. Rac1 {[%emt 0:03:57]} b5 {[%emt 0:02:23]} 11. cxb5 {[%emt 0:00:49]} cxb5 {[%emt 0:00:52]} 12. b4 {[%emt 0:01:05]} a6 {[%emt 0:02:51]} 13. a3 {[%emt 0:05:08]} Be6 {[%emt 0:01:04]} 14. Rc2 {[%emt 0:02:58]} Bb3 {[%emt 0:02:52]} 15. Rb2 {[%emt 0:00:29]} Bc4 {[%emt 0:00:26]} 16. Bxf6 Bxf6 {[%emt 0:00:19]} 17. Ne4 {[%emt 0:06:43]} Bg7 {[%emt 0:00:31]} 18. Rc1 {[%emt 0:01:10]} f5 {[%emt 0:08:02]} 19. Ng3 {[%emt 0:04:19]} d5 {[%emt 0:00:25]} 20. Ne1 {[%emt 0:08:11]} e5 {[%emt 0:01:55]} 21. Nc2 {[%emt 0:05:08]} e4 {[%emt 0:04:20]} 22. Na1 {[%emt 0:05:12]} Bh6 {[%emt 0:02:00]} 23. Nb3 {[%emt 0:02:01]} f4 {[%emt 0:00:30]} 24. Nf1 {[%emt 0:00:09]} Qh4 {[%emt 0:02:47]} 25. Nc5 {[%emt 0:03:00]} Rf7 {[%emt 0:08:39]} 26. Bxc4 {[%emt 0:04:10]} bxc4 {[%emt 0:00:31]} 27. a4 {[%emt 0:01:40]} Qe7 {[%emt 0:07:27]} 28. Rcb1 {[%emt 0:02:29]} (28. exf4 $17 {is a better defense.} Bxf4 29. Ne3) 28... fxe3 {[%emt 0:02:31]} 29. fxe3 {[%emt 0:00:21]} Qf8 {[%emt 0:03:01]} 30. Qe1 $2 {[%emt 0:03:30]} (30. Ng3 $17) 30... Rb6 {[%emt 0:00:35]} 31. Ng3 {[%emt 0:03:04]} Qb8 {[%emt 0:11:14]} 32. Kh1 {[%emt 0:04:35]} (32. Nh1 $11) 32... Bf8 {[%emt 0:00:50]} 33. Qc3 {[%emt 0:02:44] [#]} ({Better is} 33. Ne2 $15) 33... Bd6 {[%emt 0:00:46]} ({Black should try} 33... Rbf6 $1 $17 34. Rg1 Qe8) 34. Rf1 {[%emt 0:02:00]} Qf8 {[%emt 0:04:12]} 35. Rxf7 {[%emt 0:02:51]} Qxf7 {[%emt 0:00:08]} 36. Qe1 {[%emt 0:00:55]} Bxg3 {[%emt 0:00:56]} 37. hxg3 {[%emt 0:00:06]} g5 {[%emt 0:02:16]} 38. g4 $2 {[%emt 0:04:15]} (38. Kg1 $11) 38... Rf6 {[%emt 0:04:57]} 39. Rb1 {[%emt 0:02:05]} h5 {[%emt 0:00:50]} 40. Qg3 {[%emt 0:03:14]} h4 {[%emt 0:01:29]} 41. Qe5 {[%emt 0:00:12]} Qg7 $2 {[%emt 0:03:17] [#]} (41... Rg6 $11 {and Black is okay.}) 42. Nd7 $1 {[%emt 0:03:22]} Rf7 {[%emt 0:07:03]} 43. Qxc7 {[%emt 0:01:03]} Rxd7 {[%emt 0:00:02]} 44. Qc8+ {[%emt 0:00:25]} Kh7 {[%emt 0:00:20] [#]} 45. b5 $1 {[%emt 0:00:38]} axb5 {[%emt 0:01:54]} 46. axb5 {[%emt 0:00:05]} ({Keinesfalls} 46. Rxb5 $6 h3 $16) 46... h3 {[%emt 0:00:18]} 47. gxh3 $2 {[%emt 0:02:08]} ({Only move:} 47. b6 $18 Rb7 48. gxh3) 47... Qf7 $2 {[%emt 0:00:15]} (47... Rf7 $1 $11) 48. b6 $2 {[%emt 0:01:03]} (48. Kg1 $18) 48... Qf3+ {[%emt 0:01:32]} 49. Kh2 {[%emt 0:01:33]} Qf2+ {[%emt 0:00:33]} 50. Kh1 {[%emt 0:00:04]} Qf3+ {[%emt 0:02:32]} 51. Kh2 $11 {[%emt 0:00:05]} 1/2-1/2

[Event "Guimaraes Open 2018"]
[Site "Guimaraes"]
[Date "2018.10.06"]
[Round "5"]
[White "Oliveira, Maria Alice Ramos M"]
[Black "Fidalgo, Daniel Neves"]
[Result "0-1"]
[ECO "C00"]
[WhiteElo "1545"]
[BlackElo "2018"]
[Annotator "NA RC"]
[PlyCount "64"]
[EventDate "2018.10.04"]
[EventType "swiss"]
[EventCountry "POR"]
[SourceTitle "playchess.com"]
[Source "ChessBase"]
[SourceQuality "1"]
[TimeControl "5400+30"]

1. e4 {[%emt 0:00:00]} e6 {[%emt 0:00:00]} 2. Qe2 {[%emt 0:00:00]} Be7 {[%emt 0:11:37]} 3. Nf3 {[%emt 0:02:37] C00: French: Unusual White 2nd moves} (3. g3 d5 4. d3 dxe4 5. dxe4 e5 6. Nf3 Nc6 7. Bg2 Nf6 8. c3 O-O 9. b4 Be6 10. O-O Nd7 11. Rd1 Qb8 12. Na3 {½-½ (46) Kindermann,S (2502)-Meier,G (2655) Germany 2018}) 3... d5 {[%emt 0:04:51]} 4. e5 {[%emt 0:02:18]} Nh6 {[%emt 0:01:19]} 5. d4 Nf5 {[%emt 0:01:22]} 6. g3 {[%emt 0:08:22]} c5 $146 {[%emt 0:00:37]} ({Predecessor:} 6... O-O 7. Bg2 c5 8. c3 Nc6 9. g4 Nh4 10. Nxh4 Bxh4 11. Be3 cxd4 12. cxd4 {0-1 (26) Arnetta,M-Culle,S Santa Flavia 1997}) 7. dxc5 {[%emt 0:26:27]} Bxc5 {[%emt 0:06:53]} 8. Bg2 {[%emt 0:01:27]} O-O {[%emt 0:01:06]} 9. O-O {[%emt 0:02:25]} Nc6 {[%emt 0:02:01]} 10. c3 {[%emt 0:02:50]} a6 {[%emt 0:03:55]} 11. Bf4 {[%emt 0:07:34]} Bd7 {[%emt 0:01:00]} 12. c4 {[%emt 0:18:50]} Ncd4 {[%emt 0:06:27]} 13. Nxd4 {[%emt 0:01:54]} Nxd4 {[%emt 0:00:09]} 14. Qd3 {[%emt 0:09:59]} dxc4 {[%emt 0:00:46]} 15. Qxc4 {[%emt 0:00:29]} Rc8 {[%emt 0:00:14]} 16. Nc3 {[%emt 0:01:56]} Nc2 {[%emt 0:11:26]} 17. Qe2 {[%emt 0:02:10]} Nxa1 {[%emt 0:00:05]} 18. Rxa1 {[%emt 0:00:55]} (18. Bxb7 $142 Rb8 19. Bxa6) 18... Bc6 {[%emt 0:00:10]} 19. Rd1 {[%emt 0:00:40]} Qc7 {[%emt 0:00:43]} 20. Ne4 {[%emt 0:00:12]} Bxe4 {[%emt 0:01:02]} 21. Bxe4 {[%emt 0:00:36]} Rfd8 {[%emt 0:00:49]} 22. Rc1 {[%emt 0:01:22]} Qb6 {[%emt 0:00:46]} 23. Rc2 {[%emt 0:00:31]} Be7 {[%emt 0:01:19]} 24. Rxc8 {[%emt 0:01:43]} Rxc8 {[%emt 0:00:01]} 25. Be3 {[%emt 0:00:29]} Bc5 {[%emt 0:00:31]} 26. Qc2 {[%emt 0:01:48]} g6 {[%emt 0:00:59]} 27. Bxb7 {[%emt 0:02:26]} Qxb7 {[%emt 0:06:15]} 28. Bxc5 {[%emt 0:00:07]} Qd5 29. b4 {[%emt 0:00:06]} Qxe5 {[%emt 0:00:11]} 30. Qd2 {[%emt 0:02:27]} Qd5 {[%emt 0:01:29]} 31. Qe2 {[%emt 0:01:59]} Rd8 {[%emt 0:00:18]} 32. Qxa6 $19 {[%emt 0:00:15]} (32. h3 Qd1+ 33. Qf1) 32... Qf3 {[%emt 0:00:15]} 0-1

[Event "Guimaraes Open 2018"]
[Site "Guimaraes"]
[Date "2018.10.06"]
[Round "5"]
[White "Ribeiro, Orlando Camilo Duar"]
[Black "Gawle, Ireneusz"]
[Result "1/2-1/2"]
[ECO "C50"]
[WhiteElo "1461"]
[BlackElo "1800"]
[Annotator "NA RC"]
[PlyCount "118"]
[EventDate "2018.10.04"]
[EventType "swiss"]
[EventCountry "POR"]
[SourceTitle "playchess.com"]
[Source "ChessBase"]
[SourceQuality "1"]
[TimeControl "5400+30"]

1. e4 {[%emt 0:00:00]} e5 {[%emt 0:02:48]} 2. Nf3 {[%emt 0:00:26]} Nc6 {[%emt 0:00:02]} 3. Bc4 {[%emt 0:00:11]} Nf6 {[%emt 0:00:03]} 4. d3 {[%emt 0:00:30]} Bc5 {[%emt 0:01:47]} 5. c3 {[%emt 0:00:27]} d6 {[%emt 0:01:34]} 6. Bb3 {[%emt 0:01:02]} h6 {[%emt 0:05:08]} 7. Nbd2 {[%emt 0:03:12] C54: Giuoco Piano: 4 c3 Nf6, main lines with 5 d4 and 5 d3} O-O {[%emt 0:00:51]} 8. Nf1 {[%emt 0:00:43]} (8. h3 a5 9. O-O Be6 10. Bc2 b5 11. Re1 Qb8 12. Nb3 Bb6 13. a4 Qa7 14. Be3 Bxe3 15. Rxe3 bxa4 {½-½ (42) Ter Sahakyan,S (2563)-Petrosyan,M (2570) Yerevan 2018}) 8... d5 {[%emt 0:02:01]} 9. Qe2 {[%emt 0:02:25]} dxe4 {[%emt 0:09:46]} 10. dxe4 {[%emt 0:00:18]} Ng4 {[%emt 0:06:26]} 11. Ne3 {[%emt 0:02:19]} Nxe3 {[%emt 0:02:58]} 12. Bxe3 {[%emt 0:01:09]} Qe7 {[%emt 0:00:13]} 13. h3 {[%emt 0:02:22]} a5 $146 {[%emt 0:00:48]} ({Predecessor:} 13... Bxe3 14. Qxe3 {1-0 (51) Nevanlinna,R (2292)-Ronnqvist,T Finland 2009}) 14. a4 {[%emt 0:02:00]} Kh8 {[%emt 0:08:53]} 15. Bxc5 {[%emt 0:04:56]} Qxc5 {[%emt 0:00:03]} 16. Qb5 {[%emt 0:00:18]} Qe7 {[%emt 0:01:44]} 17. O-O {[%emt 0:01:51]} Ra6 {[%emt 0:01:31]} 18. Bd5 {[%emt 0:05:44]} Nd8 19. Bc4 {[%emt 0:05:00]} c5 {[%emt 0:11:35]} 20. Rad1 {[%emt 0:03:19]} Rg6 {[%emt 0:00:36]} 21. Kh1 {[%emt 0:00:13]} f5 {[%emt 0:14:11]} 22. Rd5 ({Much worse is} 22. Qxa5 $6 b6 $11) 22... fxe4 {[%emt 0:04:58]} 23. Nxe5 {[%emt 0:07:37]} Rg5 {[%emt 0:14:06]} 24. Qxc5 {[%emt 0:03:06]} Qxc5 {[%emt 0:16:21]} 25. Rxc5 {[%emt 0:00:02]} Nc6 {[%emt 0:02:40]} 26. Rxc6 {[%emt 0:00:39]} Rxe5 {[%emt 0:01:17]} 27. Rd6 {[%emt 0:01:35]} e3 {[%emt 0:00:42]} 28. fxe3 {[%emt 0:00:35]} Rfe8 {[%emt 0:02:26]} 29. Rf3 {[%emt 0:01:10]} Bf5 {[%emt 0:00:12]} 30. Bd3 {[%emt 0:01:18]} Be4 {[%emt 0:02:30]} 31. Bxe4 {[%emt 0:01:06]} Rxe4 {[%emt 0:00:02]} 32. Rd4 {[%emt 0:00:30]} Rxe3 {[%emt 0:00:15]} 33. Rxe3 {[%emt 0:00:07]} Rxe3 {[%emt 0:00:04]} 34. Rd5 {[%emt 0:00:07]} b6 {[%emt 0:02:00]} 35. Rb5 {[%emt 0:00:44]} Re6 {[%emt 0:00:09]} 36. b4 {[%emt 0:00:40]} Rc6 {[%emt 0:00:32]} 37. bxa5 {[%emt 0:00:43]} bxa5 {[%emt 0:00:01]} 38. Rxa5 {[%emt 0:00:07]} Rxc3 {[%emt 0:00:02]} 39. Ra8+ {[%emt 0:00:47]} Kh7 {[%emt 0:00:03]} 40. a5 {[%emt 0:00:07]} Ra3 $2 {[%emt 0:00:04]} (40... Kg6 $14) 41. a6 {[%emt 0:00:11]} h5 {[%emt 0:00:57]} 42. a7 {[%emt 0:01:13]} h4 {[%emt 0:00:04]} 43. Kg1 {[%emt 0:00:21]} Ra2 {[%emt 0:00:04]} 44. Kf1 {[%emt 0:00:18]} Kg6 {[%emt 0:00:26]} 45. Ke1 {[%emt 0:00:33]} Kf7 {[%emt 0:03:09] [#]} 46. Kd1 $1 {[%emt 0:00:37]} Kg6 {[%emt 0:00:24] [#]} (46... Ra4 $142 47. Kc2 Ra3) 47. Rh8 $2 {[%emt 0:01:02]} ({Only move:} 47. Kc1 $1 $18) 47... Rxa7 {[%emt 0:00:02]} 48. Rxh4 {[%emt 0:00:10]} Re7 {[%emt 0:00:11]} 49. Kd2 {[%emt 0:00:29]} Kg5 {[%emt 0:00:10]} 50. Rg4+ {[%emt 0:00:10]} Kf5 {[%emt 0:00:08]} 51. Rd4 {[%emt 0:00:54]} g5 {[%emt 0:00:03]} 52. Ra4 {[%emt 0:00:55]} Re5 {[%emt 0:00:11]} 53. Ra8 {[%emt 0:00:18]} Kf4 $11 {[%emt 0:00:13]} 54. Ra4+ {[%emt 0:00:30]} Kg3 {[%emt 0:01:05]} 55. Rg4+ {[%emt 0:00:12]} Kf2 {[%emt 0:00:05]} 56. Kd3 {[%emt 0:00:58]} Re3+ {[%emt 0:00:14]} 57. Kd4 {[%emt 0:01:51]} Rg3 {[%emt 0:00:02]} 58. Ke4 {[%emt 0:00:24]} Rxg2 {[%emt 0:00:21]} 59. Kf5 {[%emt 0:00:48]} Rh2 {[%emt 0:00:34]} 1/2-1/2

[Event "Guimaraes Open 2018"]
[Site "Guimaraes"]
[Date "2018.10.06"]
[Round "5"]
[White "Pinto, Andre Jorge Pimpare"]
[Black "Cordeiro, Joao Carlos Santos "]
[Result "1/2-1/2"]
[ECO "C50"]
[WhiteElo "1309"]
[BlackElo "1792"]
[Annotator "NA RC"]
[PlyCount "134"]
[EventDate "2018.10.04"]
[EventType "swiss"]
[EventCountry "POR"]
[SourceTitle "playchess.com"]
[Source "ChessBase"]
[SourceQuality "1"]
[TimeControl "5400+30"]

1. e4 {[%emt 0:00:00]} e5 {[%emt 0:00:07]} 2. Nf3 {[%emt 0:00:00]} Nc6 {[%emt 0:00:03]} 3. Bc4 {[%emt 0:00:13]} Bc5 {[%emt 0:00:04]} 4. d3 {[%emt 0:00:11]} Nf6 {[%emt 0:00:20]} 5. Nc3 {[%emt 0:00:26]} d6 {[%emt 0:00:30]} 6. h3 {[%emt 0:02:34]} a6 {[%emt 0:01:20]} 7. O-O {[%emt 0:01:05]} h6 {[%emt 0:00:20]} 8. Qe1 {[%emt 0:02:30]} Be6 {[%emt 0:03:18]} 9. Bb3 {[%emt 0:03:02]} Qd7 {[%emt 0:12:08]} 10. Bxe6 {[%emt 0:04:13]} fxe6 {[%emt 0:00:13]} 11. Be3 {[%emt 0:01:24]} Bxe3 {[%emt 0:01:53]} 12. Qxe3 {[%emt 0:00:16]} O-O-O {[%emt 0:01:51]} 13. Ne2 {[%emt 0:02:40]} g5 {[%emt 0:02:55]} 14. Nh2 {[%emt 0:02:18]} Rdg8 {[%emt 0:02:35]} 15. Ng4 {[%emt 0:05:27]} Nxg4 {[%emt 0:03:46]} 16. hxg4 {[%emt 0:00:11]} Kb8 {[%emt 0:01:15]} 17. Ng3 {[%emt 0:04:12]} Qf7 {[%emt 0:04:27]} 18. f3 {[%emt 0:03:31]} Nd4 {[%emt 0:02:55]} 19. Qf2 {[%emt 0:03:27]} Nc6 {[%emt 0:06:47]} 20. c3 {[%emt 0:06:12]} Ne7 {[%emt 0:01:45]} 21. d4 {[%emt 0:11:34]} Ng6 {[%emt 0:01:40]} 22. dxe5 {[%emt 0:05:31]} Nxe5 {[%emt 0:00:15]} 23. Qd2 {[%emt 0:02:53]} Ng6 {[%emt 0:02:22]} 24. Nh5 {[%emt 0:02:56]} Nf4 {[%emt 0:01:00]} 25. Nxf4 {[%emt 0:00:11]} gxf4 {[%emt 0:00:02]} 26. Kf2 {[%emt 0:01:59]} e5 {[%emt 0:04:38]} 27. Rh1 {[%emt 0:00:18]} h5 {[%emt 0:02:19]} 28. gxh5 {[%emt 0:00:19]} Rxh5 {[%emt 0:00:12]} 29. Rxh5 {[%emt 0:00:10]} Qxh5 {[%emt 0:00:04]} 30. Rg1 {[%emt 0:00:17]} Qh4+ {[%emt 0:01:17]} 31. Kf1 {[%emt 0:00:35]} Rd8 {[%emt 0:03:37]} 32. Qf2 {[%emt 0:03:46]} Qf6 {[%emt 0:01:52]} 33. c4 {[%emt 0:01:24]} c6 {[%emt 0:05:30]} 34. Qb6 {[%emt 0:02:23]} Qe7 {[%emt 0:01:12]} 35. Rh1 {[%emt 0:01:19]} Qc7 {[%emt 0:01:04]} 36. Qxc7+ {[%emt 0:00:59]} Kxc7 {[%emt 0:00:04]} 37. Ke2 {[%emt 0:00:12]} Rg8 {[%emt 0:00:17]} 38. Kf2 {[%emt 0:01:18]} b5 {[%emt 0:01:04]} 39. cxb5 {[%emt 0:04:38]} axb5 {[%emt 0:00:12]} 40. a3 {[%emt 0:00:09]} Kb6 {[%emt 0:01:13]} 41. Rd1 {[%emt 0:00:36]} Rg6 {[%emt 0:00:19]} 42. Rd2 {[%emt 0:01:40]} Kc7 {[%emt 0:03:36]} 43. b4 {[%emt 0:04:10]} Kb6 {[%emt 0:01:07]} 44. Ke1 {[%emt 0:02:12]} Kc7 {[%emt 0:03:14]} 45. Kd1 {[%emt 0:09:02]} Kd7 {[%emt 0:01:04]} 46. Kc2 {[%emt 0:00:11]} Rg8 {[%emt 0:00:04]} 47. Kb3 {[%emt 0:00:18]} Ke6 {[%emt 0:00:19]} 48. Rc2 {[%emt 0:00:31]} Rc8 {[%emt 0:00:31]} 49. a4 {[%emt 0:00:42]} bxa4+ {[%emt 0:05:37]} 50. Kxa4 {[%emt 0:00:07]} Kd7 {[%emt 0:02:08]} 51. Kb3 {[%emt 0:02:00]} Kc7 {[%emt 0:01:06]} 52. b5 {[%emt 0:01:48]} Kb7 {[%emt 0:04:44]} 53. Rxc6 {[%emt 0:00:46]} Rxc6 {[%emt 0:00:08]} 54. bxc6+ {[%emt 0:00:03]} Kxc6 {[%emt 0:00:12]} 55. Kc4 {[%emt 0:00:07]} Kc7 {[%emt 0:00:14]} 56. Kb4 {[%emt 0:00:54]} Kb6 {[%emt 0:00:05]} 57. Kc4 {[%emt 0:00:07]} Kc6 {[%emt 0:00:07]} 58. Kd3 {[%emt 0:02:57]} Kb5 {[%emt 0:00:14]} 59. Ke2 {[%emt 0:00:13]} Kc4 {[%emt 0:00:15]} 60. Kf2 {[%emt 0:00:09]} Kd4 {[%emt 0:04:38]} 61. g4 {[%emt 0:01:02]} fxg3+ {[%emt 0:00:09]} 62. Kxg3 {[%emt 0:00:14]} Ke3 {[%emt 0:00:40]} 63. Kg4 {[%emt 0:00:09]} Kd4 {[%emt 0:01:23]} 64. Kf5 {[%emt 0:00:49]} d5 {[%emt 0:00:18]} 65. exd5 {[%emt 0:00:10]} Kxd5 {[%emt 0:00:04]} 66. Kf6 {[%emt 0:00:53]} e4 {[%emt 0:00:34]} 67. fxe4+ {[%emt 0:00:02]} Kxe4 {[%emt 0:01:14]} 1/2-1/2

[Event "Guimaraes Open 2018"]
[Site "Guimaraes"]
[Date "2018.10.07"]
[Round "6"]
[White "Martin Duque, Jesus"]
[Black "Fernandes, Ricardo Paulos"]
[Result "1-0"]
[ECO "B07"]
[WhiteElo "2354"]
[BlackElo "2098"]
[Annotator "ChessBase"]
[PlyCount "55"]
[EventDate "2018.10.04"]
[EventType "swiss"]
[EventCountry "POR"]
[SourceTitle "playchess.com"]
[Source "ChessBase"]
[SourceQuality "1"]
[TimeControl "5400+30"]

1. e4 {[%emt 0:00:26]} d6 {[%emt 0:00:00]} 2. d4 {[%emt 0:00:15]} Nf6 {[%emt 0:00:00]} 3. Nc3 {[%emt 0:00:04]} g6 {[%emt 0:00:00]} 4. Be3 {[%emt 0:00:11]} Bg7 {[%emt 0:00:00]} 5. Nf3 {[%emt 0:00:20]} Nbd7 {[%emt 0:00:47]} 6. Qd2 {[%emt 0:01:32]} Ng4 {[%emt 0:00:10]} 7. Bg5 {[%emt 0:00:30]} O-O {[%emt 0:02:18]} 8. h3 {[%emt 0:00:24]} Ngf6 {[%emt 0:00:07]} 9. O-O-O {[%emt 0:08:47]} c5 {[%emt 0:14:28]} 10. Bh6 {[%emt 0:00:27]} cxd4 {[%emt 0:00:08]} 11. Nxd4 {[%emt 0:00:03]} Nc5 {[%emt 0:00:35]} 12. f3 {[%emt 0:01:07]} a6 {[%emt 0:08:59]} 13. h4 {[%emt 0:00:57]} e5 {[%emt 0:14:57]} 14. Bxg7 {[%emt 0:02:41]} Kxg7 {[%emt 0:00:25]} 15. Nb3 {[%emt 0:00:04]} Nxb3+ {[%emt 0:00:13]} 16. axb3 {[%emt 0:00:58]} Ne8 {[%emt 0:00:20]} 17. h5 {[%emt 0:04:43]} g5 {[%emt 0:00:56]} 18. h6+ {[%emt 0:00:12]} Kh8 {[%emt 0:01:08]} 19. g3 {[%emt 0:01:18]} b5 {[%emt 0:03:02]} 20. f4 {[%emt 0:03:43]} f6 {[%emt 0:00:29]} 21. Be2 {[%emt 0:00:35]} Be6 {[%emt 0:02:17]} 22. Bh5 {[%emt 0:02:31]} Rc8 {[%emt 0:10:38]} 23. Kb1 {[%emt 0:08:48]} Rc6 {[%emt 0:07:02]} 24. Rhf1 {[%emt 0:00:14]} gxf4 {[%emt 0:00:44]} 25. gxf4 {[%emt 0:01:01]} Qc8 {[%emt 0:04:40]} 26. fxe5 {[%emt 0:08:40]} dxe5 {[%emt 0:00:01]} 27. Qd8 {[%emt 0:00:10]} Nc7 {[%emt 0:01:11]} 28. Qe7 {[%emt 0:01:59]} 1-0

[Event "Guimaraes Open 2018"]
[Site "Guimaraes"]
[Date "2018.10.07"]
[Round "6"]
[White "Pazos Porta, Antonio"]
[Black "Paasikangas-Tella, Johanna"]
[Result "1-0"]
[ECO "B26"]
[WhiteElo "2323"]
[BlackElo "2233"]
[Annotator "NA"]
[PlyCount "73"]
[EventDate "2018.10.04"]
[EventType "swiss"]
[EventCountry "POR"]
[SourceTitle "playchess.com"]
[Source "ChessBase"]
[SourceQuality "1"]
[TimeControl "5400+30"]

1. e4 {[%emt 0:06:22]} c5 {[%emt 0:00:00]} 2. Nc3 {[%emt 0:03:07]} d6 {[%emt 0:00:40]} 3. g3 {[%emt 0:00:58]} g6 {[%emt 0:00:48]} 4. Bg2 {[%emt 0:01:53]} Bg7 {[%emt 0:00:08]} 5. d3 {[%emt 0:00:30]} Nc6 {[%emt 0:01:22]} 6. Be3 {[%emt 0:00:40]} Nd4 {[%emt 0:07:28]} 7. Qd2 {[%emt 0:03:59]} Rb8 {[%emt 0:03:35] LiveBook: 20 Games} 8. Nd1 {[%emt 0:09:26]} Nf6 {[%emt 0:03:19] B26: Closed Sicilian: 3 g3, lines with early Be3} (8... e5 9. c3 Ne6 10. Ne2 Ne7 11. Bh6 O-O 12. Bxg7 Kxg7 13. d4 cxd4 14. cxd4 Qb6 15. d5 Nc5 16. b4 Qxb4 {0-1 (34) Norberg,J (2305)-Bator,R (2432) Sweden 2015}) 9. c3 {[%emt 0:16:09]} Nc6 {[%emt 0:00:29]} 10. h3 {[%emt 0:11:03]} h6 $146 {[%emt 0:04:11]} ({Predecessor:} 10... Qc7 11. Ne2 b5 12. O-O O-O 13. Rc1 Ne5 14. f4 Ned7 15. Nf2 Bb7 16. d4 {1-0 (50) Burchardt,B (2189)-Birkholz,O (2048) Drammen 2018}) 11. Ne2 {[%emt 0:07:39]} Bd7 {[%emt 0:07:07]} 12. O-O {[%emt 0:07:34]} Qc8 {[%emt 0:05:59]} 13. Kh2 {[%emt 0:01:33]} h5 {[%emt 0:08:20]} 14. f4 {[%emt 0:05:37]} Be6 {[%emt 0:10:40]} 15. Nf2 {[%emt 0:02:10]} O-O {[%emt 0:06:13]} 16. d4 {[%emt 0:03:50]} cxd4 {[%emt 0:00:28]} 17. cxd4 {[%emt 0:00:44]} d5 $16 {[%emt 0:00:50]} 18. e5 {[%emt 0:00:20]} Ne8 {[%emt 0:01:42]} 19. g4 {[%emt 0:05:44]} hxg4 {[%emt 0:00:59]} 20. hxg4 {[%emt 0:00:02]} Bxg4 {[%emt 0:00:45]} 21. Nxg4 {[%emt 0:00:22]} Qxg4 {[%emt 0:00:09]} 22. Bh3 {[%emt 0:02:34]} Qh4 {[%emt 0:01:26]} 23. f5 {[%emt 0:00:42]} gxf5 {[%emt 0:01:25]} 24. Rxf5 {[%emt 0:01:17]} e6 {[%emt 0:01:04]} 25. Rg5 {[%emt 0:02:17]} Qh7 {[%emt 0:02:47]} 26. Nf4 {[%emt 0:00:44]} Ne7 {[%emt 0:01:11]} 27. Rh5 {[%emt 0:00:20]} Bh6 {[%emt 0:04:02]} 28. Rxh6 {[%emt 0:02:17]} Qxh6 {[%emt 0:00:52]} 29. Nxd5 {[%emt 0:00:02]} Qh5 {[%emt 0:05:56]} 30. Nxe7+ {[%emt 0:00:28]} Kh7 {[%emt 0:01:43]} 31. Rg1 {[%emt 0:02:12]} f5 {[%emt 0:05:26]} 32. exf6 {[%emt 0:00:04]} Rxf6 {[%emt 0:01:41]} 33. Qc2+ {[%emt 0:00:32]} Rf5 {[%emt 0:00:52]} 34. Nxf5 {[%emt 0:00:21]} exf5 {[%emt 0:00:05]} 35. Qxf5+ {[%emt 0:00:36]} Qxf5 {[%emt 0:00:06]} 36. Bxf5+ {[%emt 0:00:07]} Kh8 {[%emt 0:00:03]} 37. Bf4 {[%emt 0:00:08]} 1-0